Workbook

Sheet reseed calculator
A2: . . . . . . . . . . . . . . . . . . . . . . . . . . . . . . . . . . . . . . .
A3: Reseeding Decision Tool | E3: Printed: | F3: =TODAY() -> 2022-03-22
B5: *** Enter/select changes to items in BLUE only ***
A7: Farm Information: | C7: =IF(E14=0,"Probable yield does not exist for this soil zone & Risk Area combination. Please select a valid soil zone.","") -> 
B8: MASC - Risk Area | E8: Risk Area #2
B9: MASC - Soil Zone | E9: D | H9: hide this rows…now all D soil
B10: MASC AgriInsurance Coverage level | E10: 0.8
A12: Original Crop: | E12: Canola
B13: MASC - Individual Productivity Index (IPI) | E13: 1 | H13: hide this rows…not going to use
B14: Estimated MASC Probable Yield (bu/ac) | E14: =HLOOKUP('reseed calculator'!$E$8,'data HIDE'!$C$20:$R$102,VLOOKUP('reseed calculator'!$E$9,'data HIDE'!$L$1:$U$11,HLOOKUP('reseed calculator'!$E$12,'data HIDE'!$C$1:$J$14,14,FALSE)),FALSE)*'reseed calculator'!$E$13 -> 41.8
B15: Estimated Market Price ($/bu) | E15: =HLOOKUP($E$12,'data HIDE'!$C$1:$J$13,10,FALSE) -> 15.88
A17: Potential Reseeded Crop: | E17: Canola
B18: MASC - Individual Productivity Index (IPI) | E18: =IF($E$17="soybeans","-",1) -> 1
B19: MASC - Individual Coverage (bu/ac) | E19: =IF($E$17="soybeans",HLOOKUP('reseed calculator'!$E$8,'data HIDE'!$C$80:$R$81,2,FALSE),"-") -> -
B20: Estimated Market Price ($/bu) | E20: =HLOOKUP($E$17,'data HIDE'!$C$1:$J$13,10,FALSE) -> 15.88
A22: ="Damaged "&E12&" Plant Stand Evaluation:" -> Damaged Canola Plant Stand Evaluation: | E22: Plants/m2
B23: Field Sample Plant Counts/m2 | E23: 10
B24: * enter up to (5) plant counts in the boxes to the right
B25: * leave entries blank if less than (5) counts were taken
B26: * 10.8 plants/m2 = approx. 1 plant/ft2
B29: Average Plant Count/m2 | E29: =ROUND(AVERAGE(E23:E27),1) -> 10
B30: Plant Count - Tiller or Yield Factor | E30: =IF(E12="Canola",IF(E29>40.9,1,VLOOKUP(E29,'data HIDE'!U21:V430,2,0)),HLOOKUP(E12,'data HIDE'!C1:J13,12,FALSE)) -> 0.65
B31: Plant Count - Tillers to Bushels Factor | E31: =IF(E12="Canola","-",HLOOKUP(E12,'data HIDE'!C1:J13,13,FALSE)) -> -
B32: Estimated Yield (bu/ac) | E32: =IF(E12="Canola",E14*E30,(E29*E30*E31)) -> 27.17
B33: Estimated Gross Revenue ($/ac) | E33: =E32*E15 -> 431.4596
A35: =E17&" Reseeding Evaluation:" -> Canola Reseeding Evaluation:
B36: Reseed Date | C36: =IF(E36="1st week june","Contact your local MASC office to verify seeding deadlines.",IF(E36="2nd week june","Contact your local MASC office to verify seeding deadlines.",IF(E36="3rd week June","Contact your local MASC office to verify seeding deadlines.",""))) -> Contact your local MASC office to verify seeding deadlines. | E36: 1st week June
B37: Date - Yield Factor | E37: =HLOOKUP(E17,'data HIDE'!C1:J13,VLOOKUP(E36,'data HIDE'!A2:C9,2,FALSE),FALSE) -> 0.9164
B38: Estimated Reseed Yield (bu/ac) | E38: =IF(AND(E12="Wheat - Winter",E17="Canola"),HLOOKUP('reseed calculator'!E8,'data HIDE'!$C$20:$R$102,VLOOKUP('reseed calculator'!E9,'data HIDE'!$L$1:$U$11,HLOOKUP('reseed calculator'!E17,'data HIDE'!C1:J14,14,FALSE)),FALSE)*'reseed calculator'!E18*E37*'data HIDE'!C16,IF(E17="soybeans",E19*E37,HLOOKUP('reseed calculator'!E8,'data HIDE'!$C$20:$R$102,VLOOKUP('reseed calculator'!E9,'data HIDE'!$L$1:$U$11,HLOOKUP('reseed calculator'!E17,'data HIDE'!C1:J14,14,FALSE)),FALSE))*'reseed calculator'!E18*E37) -> 38.30552
B39: Estimated AgriInsurance Reseeding Indemnity ($/ac) | E39: =IF(E32>=E14,0,ROUND((((E14*E10)*0.25)*HLOOKUP(E12,'data HIDE'!C1:J13,10,FALSE)),2)) -> 132.76
B40: Estimated Seed Company Reimbursement ($/ac) | E40: 0
B41: Reseed Seed Costs ($/ac) | E41: =HLOOKUP($E$17,'data HIDE'!$C$1:$J$13,11,FALSE) -> 67.5
B42: Reseed Machinery Costs ($/ac) | E42: 16.5
B43: Estimated Gross Revenue ($/ac) | E43: =((((E38*E20)+E39+E40))-(E41+E42)) -> 657.0516576
B44: (net reseeding indemnity, reimbursements & expenses)
A46: Estimated Benefit (Cost) of Reseed Decision ($/ac) | E46: =((((E38*E20)+E39+E40))-(E41+E42))-E33 -> 225.5920576
A48: ="Reseed Decision - "&IF(E46>0,'data HIDE'!N16,'data HIDE'!N15) -> Reseed Decision - Likely Beneficial to Reseed
A50: Note: This decision tool contains general information only and does not form part of the AgriInsurance Contract between an insured and MASC. In all cases, the AgriInsurance Contract shall prevail. This decision tool is only a guide and is not intended to be an in-depth study of the cost of production of this industry. Interpretation and utilization of this information is the responsibility of the user. No liability for decisions based on this publication is assumed.
F52: February, 2022
E58: Carl - Ignore this block
B60: 4th week April | C60: 0 | D60: Soils | E60: =HLOOKUP($E$12,'data HIDE'!$C$1:$J$13,10,FALSE) -> 15.88 | G60: orig crop price
B61: 1st week May | C61: 0.5 | D61: A
B62: 2nd week May | C62: 0.7 | D62: B | E62: =IF($E$17="soybeans","-",1) -> 1
B63: 3rd week May | C63: 0.8 | D63: C | E63: =IF($E$17="soybeans",HLOOKUP('reseed calculator'!$E$8,'data HIDE'!$C$80:$R$81,2,FALSE),"-") -> - | G63: reseed crop price
B64: 4th week May | D64: D | E64: =HLOOKUP($E$17,'data HIDE'!$C$1:$J$13,10,FALSE) -> 15.88
B65: 1st week June | D65: E
B66: 2nd week June | D66: F | E66: 0 | G66: reseed
B67: 3rd week June | D67: G | E67: =HLOOKUP($E$17,'data HIDE'!$C$1:$J$13,11,FALSE) -> 67.5
D68: H | E68: 16.5
D69: I
D70: J
B73: Original Crop | C73: Risk Area #1
B74: Canola | C74: Risk Area #2
B75: Wheat - Winter | C75: Risk Area #3
B76: Wheat - Hard Red Spring | C76: Risk Area #4
B77: Wheat - Northern Hard Red | C77: Risk Area #5
B78: Barley | C78: Risk Area #6
B79: Oats | C79: Risk Area #7
C80: Risk Area #8
C81: Risk Area #9
B82: Reseed | C82: Risk Area #10
B83: Canola | C83: Risk Area #11
B84: Wheat - Hard Red Spring | C84: Risk Area #12
B85: Wheat - Northern Hard Red | C85: Risk Area #12(32)
B86: Barley | C86: Risk Area #14
B87: Oats | C87: Risk Area #15
B88: Soybeans | C88: Risk Area #16

Sheet data HIDE (hidden)
A1: Yield date factor table | C1: Canola | D1: Wheat - Hard Red Spring | E1: Wheat - Northern Hard Red | F1: Wheat - Special Purpose | G1: Barley | H1: Oats | I1: Soybeans | J1: Wheat - Winter | L1: soils | M1: row# | N1: Canola | O1: Wheat - Hard Red Spring | P1: Wheat - Northern Hard Red | Q1: Wheat - Special Purpose | R1: Barley | S1: Oats | T1: Soybeans | U1: Wheat - Winter
A2: 4th week April | B2: 2 | C2: 1.0891 | D2: 1.1476 | E2: 0.9721 | F2: 0.9721 | G2: 1.0899 | H2: 1.1479 | I2: 1 | L2: a | M2: 2 | N2: 2 | O2: 14 | P2: 26 | Q2: 26 | R2: 50 | S2: 74 | T2: 62 | U2: 38 | AA2: ??? Hide prevous and indemnitty, show counts
A3: 1st week May | B3: 3 | C3: 1.078 | D3: 1.0686 | E3: 1.0593 | F3: 1.0593 | G3: 1.1413 | H3: 1.1404 | I3: 1.07 | L3: b | M3: 3 | N3: 3 | O3: 15 | P3: 27 | Q3: 27 | R3: 51 | S3: 75 | T3: 63 | U3: 39 | AA3: date
A4: 2nd week May | B4: 4 | C4: 1.0501 | D4: 0.9958 | E4: 0.9878 | F4: 0.9878 | G4: 1.0482 | H4: 1.0514 | I4: 1.07 | L4: c | M4: 4 | N4: 4 | O4: 16 | P4: 28 | Q4: 28 | R4: 52 | S4: 76 | T4: 64 | U4: 40 | AA4: previous crop factor
A5: 3rd week May | B5: 5 | C5: 1.0334 | D5: 0.9064 | E5: 0.9197 | F5: 0.9197 | G5: 0.9518 | H5: 0.9346 | I5: 1.0058 | L5: d | M5: 5 | N5: 5 | O5: 17 | P5: 29 | Q5: 29 | R5: 53 | S5: 77 | T5: 65 | U5: 41
A6: 4th week May | B6: 6 | C6: 0.9749 | D6: 0.8233 | E6: 0.897 | F6: 0.897 | G6: 0.8636 | H6: 0.8553 | I6: 0.898 | L6: e | M6: 6 | N6: 6 | O6: 18 | P6: 30 | Q6: 30 | R6: 54 | S6: 78 | T6: 66 | U6: 42
A7: 1st week June | B7: 7 | C7: 0.9164 | D7: 0.7547 | E7: 0.7295 | F7: 0.7295 | G7: 0.7544 | H7: 0.7631 | I7: 0.863 | L7: f | M7: 7 | N7: 7 | O7: 19 | P7: 31 | Q7: 31 | R7: 55 | S7: 79 | T7: 67 | U7: 43 | AA7: Add seeding date data and previous crop rotation data into CopPlan!!
A8: 2nd week June | B8: 8 | C8: 0.8357 | D8: 0.6486 | E8: 0.6684 | F8: 0.6684 | G8: 0.6549 | H8: 0.6495 | I8: 0 | L8: g | M8: 8 | N8: 8 | O8: 20 | P8: 32 | Q8: 32 | R8: 56 | S8: 80 | T8: 68 | U8: 44
A9: 3rd week June | B9: 9 | C9: 0.7549 | D9: 0.578 | E9: 0.578 | F9: 0.578 | G9: 0.5746 | H9: 0.5413 | I9: 0 | L9: H | M9: 9 | N9: 9 | O9: 21 | P9: 33 | Q9: 33 | R9: 57 | S9: 81 | T9: 69 | U9: 45
A10: AgriInsurance Price (MASC) | C10: 15.88 | D10: 9.53 | E10: 8.57 | F10: 7.35 | G10: 6.53 | H10: 5.63 | I10: 13.06 | J10: 8.71 | L10: i | M10: 10 | N10: 10 | O10: 22 | P10: 34 | Q10: 34 | R10: 58 | S10: 82 | T10: 70 | U10: 46
A11: Reseed Costs (Crop COP) | C11: 67.5 | D11: 32.5 | E11: 32.5 | F11: 32.5 | G11: 28 | H11: 35 | I11: 97.1 | L11: j | M11: 11 | N11: 11 | O11: 23 | P11: 35 | Q11: 35 | R11: 59 | S11: 83 | T11: 71 | U11: 47
A12: Tillering Factor (MASC claim form) | D12: 3 | E12: 3 | F12: 3 | G12: 4 | H12: 1.5 | I12: 3 | J12: 3
A13: Tillers to bu/ac Factor (MASC) | C13: 1 | D13: 0.068 | E13: 0.068 | F13: 0.068 | G13: 0.093 | H13: 0.279 | I13: 0.068 | J13: 0.068
A14: Column Lookup - row number | C14: 3 | D14: 4 | E14: 5 | F14: 6 | G14: 7 | H14: 8 | I14: 9 | J14: 10
N15: Likely Not Beneficial to Reseed
A16: canola on canola stubble yield | C16: 0.86 | N16: Likely Beneficial to Reseed
C19: ***all probable yields are for 'D' Soils*** | U19: Canola
C20: Risk Area #1 | D20: Risk Area #2 | E20: Risk Area #3 | F20: Risk Area #4 | G20: Risk Area #5 | H20: Risk Area #6 | I20: Risk Area #7 | J20: Risk Area #8 | K20: Risk Area #9 | L20: Risk Area #10 | M20: Risk Area #11 | N20: Risk Area #12 | O20: Risk Area #12(32) | P20: Risk Area #14 | Q20: Risk Area #15 | R20: Risk Area #16 | U20: plants/m2 | V20: factor
A21: Canola | B21: a | U21: 0 | V21: 0
B22: b | U22: 0.1 | V22: 0
B23: c | U23: 0.2 | V23: 0
B24: d | C24: 37.5 | D24: 41.8 | E24: 39.6 | F24: 43.2 | G24: 47.1 | H24: 42.7 | I24: 42.3 | J24: 45.6 | K24: 44.7 | L24: 45.4 | M24: 42.3 | N24: 49.2 | O24: 45.9 | P24: 40.5 | Q24: 38.7 | R24: 25.5 | U24: 0.3 | V24: 0
B25: e | U25: 0.4 | V25: 0
B26: f | U26: 0.5 | V26: 0
B27: g | U27: 0.6 | V27: 0
B28: H | U28: 0.7 | V28: 0
B29: i | U29: 0.8 | V29: 0
B30: j | U30: 0.9 | V30: 0
U31: 1 | V31: 0
C32: Risk Area #1 | D32: Risk Area #2 | E32: Risk Area #3 | F32: Risk Area #4 | G32: Risk Area #5 | H32: Risk Area #6 | I32: Risk Area #7 | J32: Risk Area #8 | K32: Risk Area #9 | L32: Risk Area #10 | M32: Risk Area #11 | N32: Risk Area #12 | O32: Risk Area #12(32) | P32: Risk Area #14 | Q32: Risk Area #15 | R32: Risk Area #16 | U32: 1.1 | V32: 0
A33: Wheat - Hard Red Spring | B33: a | U33: 1.2 | V33: 0
B34: b | U34: 1.3 | V34: 0
B35: c | U35: 1.4 | V35: 0
B36: d | C36: 54.7 | D36: 59.1 | E36: 56.5 | F36: 60.2 | G36: 65.8 | H36: 59 | I36: 59.2 | J36: 64 | K36: 59.8 | L36: 62.7 | M36: 63.3 | N36: 70.4 | O36: 66.7 | P36: 59.8 | Q36: 57.2 | R36: 40.7 | U36: 1.5 | V36: 0
B37: e | U37: 1.6 | V37: 0
B38: f | U38: 1.7 | V38: 0
B39: g | U39: 1.8 | V39: 0
B40: H | U40: 1.9 | V40: 0
B41: i | U41: 2 | V41: 0.15
B42: j | U42: 2.1 | V42: 0.15
U43: 2.2 | V43: 0.15
C44: Risk Area #1 | D44: Risk Area #2 | E44: Risk Area #3 | F44: Risk Area #4 | G44: Risk Area #5 | H44: Risk Area #6 | I44: Risk Area #7 | J44: Risk Area #8 | K44: Risk Area #9 | L44: Risk Area #10 | M44: Risk Area #11 | N44: Risk Area #12 | O44: Risk Area #12(32) | P44: Risk Area #14 | Q44: Risk Area #15 | R44: Risk Area #16 | U44: 2.3 | V44: 0.15
A45: Wheat - NHR | B45: a | U45: 2.4 | V45: 0.15
B46: b | U46: 2.5 | V46: 0.15
B47: c | U47: 2.6 | V47: 0.15
B48: d | C48: 60.1 | D48: 65.4 | E48: 62 | F48: 66.6 | G48: 72.8 | H48: 65.3 | I48: 65.3 | J48: 70.3 | K48: 65.7 | L48: 69.4 | M48: 69.4 | N48: 78.1 | O48: 73.2 | P48: 61.5 | Q48: 60.8 | R48: 45 | U48: 2.7 | V48: 0.15
B49: e | U49: 2.8 | V49: 0.15
B50: f | U50: 2.9 | V50: 0.15
B51: g | U51: 3 | V51: 0.3
B52: H | U52: 3.1 | V52: 0.3
B53: i | U53: 3.2 | V53: 0.3
B54: j | U54: 3.3 | V54: 0.3
U55: 3.4 | V55: 0.3
C56: Risk Area #1 | D56: Risk Area #2 | E56: Risk Area #3 | F56: Risk Area #4 | G56: Risk Area #5 | H56: Risk Area #6 | I56: Risk Area #7 | J56: Risk Area #8 | K56: Risk Area #9 | L56: Risk Area #10 | M56: Risk Area #11 | N56: Risk Area #12 | O56: Risk Area #12(32) | P56: Risk Area #14 | Q56: Risk Area #15 | R56: Risk Area #16 | U56: 3.5 | V56: 0.3
A57: Wheat - Winter | B57: a | U57: 3.6 | V57: 0.3
B58: b | U58: 3.7 | V58: 0.3
B59: c | U59: 3.8 | V59: 0.3
B60: d | C60: 56.5 | D60: 61 | E60: 58.3 | F60: 62.1 | G60: 68 | H60: 61 | I60: 61.1 | J60: 66.2 | K60: 61.8 | L60: 64.7 | M60: 65.4 | N60: 72.9 | O60: 68.9 | P60: 57.8 | Q60: 57.2 | R60: 43.4 | U60: 3.9 | V60: 0.3
B61: e | U61: 4 | V61: 0.4
B62: f | U62: 4.1 | V62: 0.4
B63: g | U63: 4.2 | V63: 0.4
B64: H | U64: 4.3 | V64: 0.4
B65: i | U65: 4.4 | V65: 0.4
B66: j | U66: 4.5 | V66: 0.4
U67: 4.6 | V67: 0.4
C68: Risk Area #1 | D68: Risk Area #2 | E68: Risk Area #3 | F68: Risk Area #4 | G68: Risk Area #5 | H68: Risk Area #6 | I68: Risk Area #7 | J68: Risk Area #8 | K68: Risk Area #9 | L68: Risk Area #10 | M68: Risk Area #11 | N68: Risk Area #12 | O68: Risk Area #12(32) | P68: Risk Area #14 | Q68: Risk Area #15 | R68: Risk Area #16 | U68: 4.7 | V68: 0.4
A69: Barley | B69: a | U69: 4.8 | V69: 0.4
B70: b | U70: 4.9 | V70: 0.4
B71: c | U71: 5 | V71: 0.55
B72: d | C72: 55.9 | D72: 73.2 | E72: 62.3 | F72: 67.8 | G72: 80.8 | H72: 68.1 | I72: 70.4 | J72: 63.1 | K72: 67.5 | L72: 66.1 | M72: 78 | N72: 83.2 | O72: 81.8 | P72: 69.2 | Q72: 65 | R72: 37.5 | U72: 5.1 | V72: 0.55
B73: e | U73: 5.2 | V73: 0.55
B74: f | U74: 5.3 | V74: 0.55
B75: g | U75: 5.4 | V75: 0.55
B76: H | U76: 5.5 | V76: 0.55
B77: i | U77: 5.6 | V77: 0.55
B78: j | U78: 5.7 | V78: 0.55
U79: 5.8 | V79: 0.55
C80: Risk Area #1 | D80: Risk Area #2 | E80: Risk Area #3 | F80: Risk Area #4 | G80: Risk Area #5 | H80: Risk Area #6 | I80: Risk Area #7 | J80: Risk Area #8 | K80: Risk Area #9 | L80: Risk Area #10 | M80: Risk Area #11 | N80: Risk Area #12 | O80: Risk Area #12(32) | P80: Risk Area #14 | Q80: Risk Area #15 | R80: Risk Area #16 | U80: 5.9 | V80: 0.55
A81: Soybeans | B81: a | U81: 6 | V81: 0.55
B82: b | U82: 6.1 | V82: 0.55
B83: c | U83: 6.2 | V83: 0.55
B84: d | C84: 36 | D84: 36 | E84: 36 | F84: 37.8 | G84: 37.8 | H84: 35.6 | I84: 35.6 | J84: 35.6 | K84: 36 | L84: 36 | M84: 37.8 | N84: 38.6 | O84: 37.8 | P84: 37.8 | Q84: 37.8 | R84: 35.6 | U84: 6.3 | V84: 0.55
B85: e | U85: 6.4 | V85: 0.55
B86: f | U86: 6.5 | V86: 0.55
B87: g | U87: 6.6 | V87: 0.55
B88: H | U88: 6.7 | V88: 0.55
B89: i | U89: 6.8 | V89: 0.55
B90: j | U90: 6.9 | V90: 0.55
U91: 7 | V91: 0.6
C92: Risk Area #1 | D92: Risk Area #2 | E92: Risk Area #3 | F92: Risk Area #4 | G92: Risk Area #5 | H92: Risk Area #6 | I92: Risk Area #7 | J92: Risk Area #8 | K92: Risk Area #9 | L92: Risk Area #10 | M92: Risk Area #11 | N92: Risk Area #12 | O92: Risk Area #12(32) | P92: Risk Area #14 | Q92: Risk Area #15 | R92: Risk Area #16 | U92: 7.1 | V92: 0.6
A93: Oats | B93: a | U93: 7.2 | V93: 0.6
B94: b | U94: 7.3 | V94: 0.6
B95: c | U95: 7.4 | V95: 0.6
B96: d | C96: 101.9 | D96: 113.5 | E96: 87.1 | F96: 96 | G96: 126.2 | H96: 97.7 | I96: 103.9 | J96: 95.4 | K96: 109.7 | L96: 112.8 | M96: 116.7 | N96: 142 | O96: 131.7 | P96: 109.9 | Q96: 108.4 | R96: 50.5 | U96: 7.5 | V96: 0.6
B97: e | U97: 7.6 | V97: 0.6
B98: f | U98: 7.7 | V98: 0.6
B99: g | U99: 7.8 | V99: 0.6
B100: H | U100: 7.9 | V100: 0.6
B101: i | U101: 8 | V101: 0.6
B102: j | U102: 8.1 | V102: 0.6
U103: 8.2 | V103: 0.6
U104: 8.3 | V104: 0.6
U105: 8.4 | V105: 0.6
U106: 8.5 | V106: 0.6
U107: 8.6 | V107: 0.6
U108: 8.7 | V108: 0.6
U109: 8.8 | V109: 0.6
U110: 8.9 | V110: 0.6
U111: 9 | V111: 0.6
U112: 9.1 | V112: 0.6
U113: 9.2 | V113: 0.6
U114: 9.3 | V114: 0.6
U115: 9.4 | V115: 0.6
U116: 9.5 | V116: 0.6
U117: 9.6 | V117: 0.6
U118: 9.7 | V118: 0.6
U119: 9.8 | V119: 0.6
U120: 9.9 | V120: 0.6
U121: 10 | V121: 0.65
U122: 10.1 | V122: 0.65
U123: 10.2 | V123: 0.65
U124: 10.3 | V124: 0.65
U125: 10.4 | V125: 0.65
U126: 10.5 | V126: 0.65
U127: 10.6 | V127: 0.65
U128: 10.7 | V128: 0.65
U129: 10.8 | V129: 0.65
U130: 10.9 | V130: 0.65
U131: 11 | V131: 0.65
U132: 11.1 | V132: 0.65
U133: 11.2 | V133: 0.65
U134: 11.3 | V134: 0.65
U135: 11.4 | V135: 0.65
U136: 11.5 | V136: 0.65
U137: 11.6 | V137: 0.65
U138: 11.7 | V138: 0.65
U139: 11.8 | V139: 0.65
U140: 11.9 | V140: 0.65
U141: 12 | V141: 0.65
U142: 12.1 | V142: 0.65
U143: 12.2 | V143: 0.65
U144: 12.3 | V144: 0.65
U145: 12.4 | V145: 0.65
U146: 12.5 | V146: 0.65
U147: 12.6 | V147: 0.65
U148: 12.7 | V148: 0.65
U149: 12.8 | V149: 0.65
U150: 12.9 | V150: 0.65
U151: 13 | V151: 0.75
U152: 13.1 | V152: 0.75
U153: 13.2 | V153: 0.75
U154: 13.3 | V154: 0.75
U155: 13.4 | V155: 0.75
U156: 13.5 | V156: 0.75
U157: 13.6 | V157: 0.75
U158: 13.7 | V158: 0.75
U159: 13.8 | V159: 0.75
U160: 13.9 | V160: 0.75
U161: 14 | V161: 0.75
U162: 14.1 | V162: 0.75
U163: 14.2 | V163: 0.75
U164: 14.3 | V164: 0.75
U165: 14.4 | V165: 0.75
U166: 14.5 | V166: 0.75
U167: 14.6 | V167: 0.75
U168: 14.7 | V168: 0.75
U169: 14.8 | V169: 0.75
U170: 14.9 | V170: 0.75
U171: 15 | V171: 0.75
U172: 15.1 | V172: 0.75
U173: 15.2 | V173: 0.75
U174: 15.3 | V174: 0.75
U175: 15.4 | V175: 0.75
U176: 15.5 | V176: 0.75
U177: 15.6 | V177: 0.75
U178: 15.7 | V178: 0.75
U179: 15.8 | V179: 0.75
U180: 15.9 | V180: 0.75
U181: 16 | V181: 0.8
U182: 16.1 | V182: 0.8
U183: 16.2 | V183: 0.8
U184: 16.3 | V184: 0.8
U185: 16.4 | V185: 0.8
U186: 16.5 | V186: 0.8
U187: 16.6 | V187: 0.8
U188: 16.7 | V188: 0.8
U189: 16.8 | V189: 0.8
U190: 16.9 | V190: 0.8
U191: 17 | V191: 0.8
U192: 17.1 | V192: 0.8
U193: 17.2 | V193: 0.8
U194: 17.3 | V194: 0.8
U195: 17.4 | V195: 0.8
U196: 17.5 | V196: 0.8
U197: 17.6 | V197: 0.8
U198: 17.7 | V198: 0.8
U199: 17.8 | V199: 0.8
U200: 17.9 | V200: 0.8
U201: 18 | V201: 0.8
U202: 18.1 | V202: 0.8
... 228 more rows
